bitfinex-derivatives/quotes_ETHF0:USTF0_20250107
["timestamp","ask_amount","ask_price","bid_price","bid_amount"]
[1736272043594,0.32719394,3440.0,3439.9,2.517]
[1736272043797,0.32720085,3440.0,3439.9,2.80777]
[1736272044103,9.16191455,3440.0,3439.9,7.22606113]
[1736272044308,9.16191455,3440.0,3439.9,10.43386113]
[1736272044596,6.56157628,3440.1,3439.9,13.28570826]
[1736272044899,5.94378628,3440.1,3440.0,0.29077]
[1736272045299,5.94378628,3440.1,3440.0,2.80777]
[1736272045498,5.94378628,3440.1,3440.0,0.29077]
[1736272045798,5.94378628,3440.1,3440.0,2.80697]
[1736272045799,5.07459628,3440.1,3440.0,2.80697]
[1736272046095,4.47997628,3440.1,3440.0,6.01477]
[1736272046296,8.87859906,3440.1,3440.0,2.80697]
[1736272046694,8.87859906,3440.1,3439.6,0.2908]
[1736272046895,0.18177756,3440.0,3439.5,2.517]
[1736272047097,3.198,3439.6,3439.3,0.29082]
[1736272047403,10.51362278,3439.7,3439.0,2.517]
[1736272047603,0.14545834,3439.6,3439.5,0.2908]
[1736272047804,3.2078,3439.7,3439.6,0.2908]
[1736272047999,3.2078,3439.7,3439.0,2.517]
[1736272048196,3.2078,3439.7,3439.6,0.2908]
[1736272048599,3.2078,3439.7,3439.6,5.2908]
[1736272049706,8.74581343,3439.7,3439.6,5.2908]
[1736272049912,3.89328343,3439.7,3439.6,5.2908]
[1736272050200,3.88722628,3440.1,3440.0,0.29077]
[1736272050404,6.79442628,3440.1,3438.8,13.51952349]
[1736272050603,3.2078,3439.8,3439.7,0.29079]
[1736272050805,3.88722628,3440.1,3438.8,13.51952349]
[1736272050996,3.88722628,3440.1,3440.0,0.29077]
[1736272051193,3.88722628,3440.1,3440.0,2.80777]
[1736272051994,11.93984752,3440.1,3439.1,3.2078]
[1736272052303,2.9072,3438.9,3437.5,3.2078]
[1736272052603,3.2078,3438.2,3437.4,8.724]
[1736272052805,3.14341713,3438.9,3436.1,11.9318]
[1736272052806,2.9072,3437.5,3436.1,11.9318]
[1736272053105,2.9072,3437.5,3435.3,1.8417]
[1736272053106,3.2078,3436.4,3435.3,1.8417]
[1736272053299,3.2078,3435.9,3435.4,2.517]
[1736272053507,3.19828,3436.3,3435.8,0.29112]
[1736272053697,3.2078,3435.9,3435.8,0.29112]
[1736272053898,3.2078,3435.9,3435.4,2.517]
[1736272054208,3.2078,3435.9,3435.8,0.29112]
[1736272054502,13.53476555,3437.2,3435.4,5.7248]
[1736272054503,3.2078,3436.3,3435.4,5.7248]
[1736272054706,3.2078,3436.3,3436.2,0.29108]
[1736272055005,8.2078,3436.3,3436.2,0.29108]
[1736272055902,16.94338956,3436.3,3436.2,2.80909]
[1736272056101,16.94338956,3436.3,3435.0,3.2078]
[1736272056102,19.85058956,3436.3,3435.0,3.2078]
[1736272056299,3.2078,3435.7,3435.6,0.29114]
[1736272056699,8.2078,3435.7,3435.6,0.29114]
[1736272057503,16.94338956,3435.7,3435.6,0.29114]
[1736272058107,16.94338956,3435.7,3434.7,3.14341713]
[1736272058108,0.29117,3435.3,3434.7,0.29121]
[1736272058307,16.94338956,3435.7,3434.7,0.29121]
[1736272058308,3.2078,3434.8,3434.7,0.29121]
[1736272058697,3.2078,3435.6,3434.7,6.35121713]
[1736272058902,3.2078,3435.6,3435.5,0.29115]
[1736272059103,8.2078,3435.6,3435.5,2.74315]
[1736272059507,11.115,3435.6,3435.5,2.74315]
[1736272059708,11.115,3435.6,3435.5,2.452]
[1736272060008,32.95845045,3435.6,3435.5,2.74315]
[1736272060203,32.95845045,3435.6,3435.5,0.2198906]
[1736272060409,32.95845045,3435.6,3434.7,3.14341713]
[1736272060607,3.2078,3435.2,3435.1,2.453]
[1736272060909,2.9072,3434.6,3434.3,0.29125]
[1736272061110,2.9072,3434.3,3433.2,3.14341713]
[1736272061309,3.2078,3433.6,3433.5,0.29131]
[1736272061507,3.2078,3433.6,3433.5,0.29132]
[1736272061703,8.2078,3433.6,3433.5,0.29132]
[1736272061905,0.29132,3433.5,3432.9,2.453]
[1736272062106,3.2078,3433.2,3433.0,0.29136]
[1736272062303,3.2078,3433.2,3432.9,0.29136]
[1736272062513,2.9072,3433.0,3432.6,8.732]
[1736272062815,2.9072,3432.7,3432.6,9.02339]
[1736272063310,7.9072,3432.7,3432.6,8.732]
[1736272063613,16.64458018,3432.7,3432.6,8.732]
[1736272064007,16.64458018,3432.7,3432.6,9.02339]
[1736272064603,8.14052018,3432.7,3432.6,11.47739]
[1736272064906,9.91777581,3432.7,3432.6,0.98466307]
[1736272065210,12.82497581,3432.7,3432.0,4.64175173]
[1736272065404,3.2078,3432.6,3432.0,4.64175173]
[1736272065603,3.2078,3432.6,3432.5,0.2914]
[1736272065808,5.0,3432.6,3432.5,0.2914]
[1736272066010,11.115,3432.6,3432.4,0.2914]
[1736272066211,2.9072,3432.1,3432.0,2.455]
[1736272066606,5.0,3432.1,3432.0,2.74644]
[1736272066816,3.2078,3433.1,3433.0,0.29136]
[1736272067106,6.26288029,3432.7,3432.6,0.29139]
[1736272067513,10.59629029,3432.7,3432.6,0.29139]
[1736272068011,7.24061,3432.7,3432.6,0.29139]
[1736272068415,10.44841,3432.7,3432.6,0.29139]
[1736272068616,0.2914,3432.6,3431.8,0.29146]
[1736272068913,0.2914,3432.6,3431.0,3.2078]
[1736272068914,0.29147,3431.8,3430.8,0.29154]
[1736272069212,3.2078,3431.1,3431.0,0.29153]
[1736272069411,2.23476242,3432.0,3430.8,4.64175173]
[1736272069412,2.9072,3431.4,3430.8,4.64175173]
[1736272069706,2.9072,3431.8,3430.9,3.2078]
[1736272069903,2.9072,3431.8,3431.4,4.64175173]
[1736272070110,2.9072,3431.7,3431.6,0.29148]
[1736272070408,3.35568029,3432.2,3431.6,2.387]
[1736272070613,3.35568029,3432.2,3432.1,2.30897043]
[1736272070807,7.68909029,3432.2,3432.1,2.60040043]
[1736272071011,7.24061,3432.2,3431.6,3.2078]
[1736272071208,2.9072,3431.8,3431.7,0.29147]
[1736272071414,2.9072,3432.0,3431.9,0.29145]
[1736272071713,4.33341,3432.2,3431.5,7.02875173]
[1736272071913,4.33341,3432.2,3432.1,0.29143]
[1736272072315,7.24061,3432.2,3431.5,7.02875173]
[1736272072516,3.2078,3431.9,3431.8,0.29145]
[1736272072905,10.44841,3431.9,3431.8,0.29145]
[1736272073310,10.44841,3431.9,3431.7,2.388]
[1736272073510,2.9072,3431.8,3431.7,2.67946]
[1736272074018,4.33341,3431.8,3431.7,2.388]
[1736272074209,4.33341,3431.8,3431.7,2.67946]
[1736272074809,4.33341,3431.8,3430.6,9.027]
[1736272074810,7.24061,3431.8,3430.8,4.64175173]
[1736272075018,2.9072,3431.2,3431.1,0.29152]
[1736272075510,3.2078,3431.4,3430.9,2.388]
[1736272075711,2.9072,3431.0,3430.9,0.29154]
[1736272076212,10.44841,3431.0,3429.6,7.84955173]
[1736272076414,2.9072,3429.9,3429.8,0.29163]
[1736272076613,2.9072,3429.9,3429.3,2.388]
[1736272076614,0.2916,3430.2,3429.9,0.29162]
[1736272076914,2.9072,3429.9,3429.8,0.29163]
[1736272077113,0.2916,3430.2,3429.4,0.29166]
[1736272077423,2.9072,3429.7,3429.0,7.84955173]
[1736272077709,2.9072,3429.8,3429.7,0.29164]
[1736272077912,7.54121,3430.0,3429.1,0.72923]
[1736272078211,7.54121,3430.0,3429.0,4.64175173]
[1736272078419,2.9072,3429.8,3429.7,0.29164]
[1736272078915,7.24061,3429.8,3429.7,0.29164]
[1736272079906,4.33341,3429.8,3429.7,0.29164]
[1736272080216,7.24061,3429.8,3429.7,0.29164]
[1736272080412,7.24061,3429.8,3428.7,3.2078]
[1736272080721,7.24061,3429.8,3429.7,0.29164]
[1736272080722,7.54121,3429.8,3429.7,0.29164]
[1736272081121,7.24061,3429.8,3429.7,0.29164]
[1736272082010,7.24061,3429.8,3429.5,0.29165]
[1736272082215,3.2078,3429.6,3429.1,2.389]
[1736272082410,4.33341,3429.8,3429.1,2.389]
[1736272082711,4.33341,3429.8,3429.7,0.29164]
[1736272082712,7.24061,3429.8,3429.7,0.29164]
[1736272082917,4.33341,3429.8,3429.7,0.29164]
[1736272083119,7.24061,3429.8,3429.1,2.389]
[1736272083320,2.9072,3429.6,3429.5,0.29166]
[1736272083522,3.2078,3430.1,3429.3,3.2078]
[1736272083725,3.2078,3431.2,3429.9,3.2078]
[1736272084021,2.9072,3430.6,3430.0,0.29161]
[1736272084219,2.9072,3430.2,3429.9,4.64175173]
[1736272084526,0.29157,3430.5,3430.2,0.29159]
[1736272084723,2.9072,3430.3,3430.2,0.2916]
[1736272084919,0.2916,3430.2,3429.9,0.29162]
[1736272085124,2.9072,3430.0,3429.3,4.64175173]
[1736272085323,7.54121,3430.3,3429.3,4.64175173]
[1736272085523,6.115,3429.9,3429.1,3.11823]
[1736272085815,2.9072,3429.7,3429.0,4.64972408]
[1736272086014,6.115,3429.7,3429.6,0.29165]
[1736272086316,6.115,3429.7,3428.8,0.72929]
[1736272086317,2.9072,3429.1,3428.1,3.2078]
[1736272086622,2.9072,3429.1,3428.3,4.64972408]
[1736272086819,4.33341,3429.1,3428.3,4.64972408]
[1736272087016,4.33341,3429.1,3429.0,0.2917]
[1736272087415,4.33341,3429.1,3428.3,3.2078]
[1736272087718,2.9072,3428.5,3428.3,3.16435955]
[1736272087920,2.9072,3428.4,3428.3,3.16435955]
[1736272088125,7.24061,3428.4,3428.3,3.16435955]
[1736272088323,7.24061,3428.4,3427.8,3.2078]
[1736272088324,0.29176,3428.3,3427.8,3.16435955]
[1736272088523,6.115,3427.9,3426.2,3.2078]
[1736272088720,2.9072,3426.3,3426.2,3.2078]
[1736272089022,6.115,3426.3,3425.5,6.37215955]
[1736272089331,2.9072,3425.6,3424.9,0.16822352]
[1736272089521,5.94677648,3425.0,3423.7,1.75730149]
[1736272089725,3.2078,3425.0,3424.6,3.16435955]
[1736272090020,2.73897648,3424.7,3424.6,3.16435955]
[1736272090219,2.73897648,3424.7,3424.1,3.2078]
[1736272090415,4.33341,3424.7,3424.4,3.16435955]
[1736272090728,2.73897648,3424.2,3423.7,1.75730149]
[1736272091022,2.73897648,3424.1,3423.7,1.75730149]
[1736272091217,2.73897648,3424.0,3423.7,1.75730149]
[1736272091423,2.73897648,3423.8,3423.7,1.75730149]
[1736272091820,4.33341,3423.8,3423.7,1.75730149]
[1736272092021,7.07238648,3423.8,3423.7,1.75730149]
[1736272092422,4.33341,3423.8,3423.7,1.75730149]
[1736272092625,7.07238648,3423.8,3423.7,1.75730149]
[1736272093018,4.33341,3423.8,3423.7,1.75730149]
[1736272093219,0.97962937,3422.1,3420.1,3.2078]
[1736272093423,3.2078,3420.8,3419.4,0.29251]
[1736272093626,0.97962937,3420.2,3420.0,3.16435955]
[1736272093820,3.2078,3421.3,3420.0,11.37215955]
[1736272094023,8.52083937,3421.3,3420.6,3.16435955]
[1736272094221,8.52083937,3421.3,3420.0,3.2078]
[1736272094222,7.54121,3421.3,3420.7,2.458]
[1736272094424,3.2078,3421.8,3421.1,3.16435955]
[1736272094626,0.97962937,3422.2,3421.1,3.16435955]
[1736272094825,0.29228,3422.2,3421.1,3.16435955]
[1736272095026,3.2078,3421.9,3421.1,6.37215955]
[1736272095323,3.2078,3423.0,3421.6,6.37215955]
[1736272095529,0.97962937,3422.6,3421.6,6.37215955]
[1736272095824,0.29224,3422.7,3421.9,3.2078]
[1736272096033,3.2078,3422.9,3422.1,6.37215955]
[1736272096229,5.31303937,3422.9,3422.1,3.16435955]
[1736272096423,0.97962937,3422.3,3421.9,2.524]
[1736272096623,3.2078,3423.6,3422.8,0.29223]
[1736272096832,0.97962937,3422.9,3421.9,2.524]
[1736272097124,0.97962937,3422.7,3421.8,2.524]
[1736272097424,4.33341,3423.6,3422.8,0.29222]
[1736272097634,3.2078,3424.4,3423.2,3.16435955]
[1736272097825,3.2078,3424.4,3423.9,3.16435955]
[1736272098019,4.33341,3424.4,3423.9,6.37215955]
[1736272098225,3.2078,3425.7,3423.9,6.37215955]
[1736272098426,0.97962937,3425.3,3424.5,3.16435955]
[1736272098724,0.97962937,3425.5,3424.6,2.524]
[1736272098937,0.97962937,3425.6,3424.6,2.524]
[1736272099122,4.33341,3425.7,3425.0,3.16435955]
[1736272099434,0.97962937,3425.2,3425.0,3.16435955]
[1736272099728,0.97962937,3425.2,3423.2,0.73048]
[1736272099729,8.2078,3425.2,3422.8,3.2078]
[1736272100029,0.97962937,3422.5,3422.4,0.29226]
[1736272100224,3.2078,3423.1,3422.2,3.16435955]
[1736272100528,5.31303937,3423.1,3422.2,3.2078]
[1736272100730,5.31303937,3423.1,3423.0,0.29221]
[1736272101119,0.97962937,3423.1,3423.0,7.88421]
[1736272101323,3.2078,3424.6,3423.0,10.7998]
[1736272101529,3.62118,3424.7,3424.6,0.29207]
[1736272101832,3.2078,3425.5,3424.6,3.2078]
[1736272102018,6.22499,3425.5,3425.4,3.45635955]
[1736272102217,3.2078,3426.8,3426.6,0.29189]
[1736272102420,6.37287029,3426.9,3426.7,3.16435955]
[1736272102632,3.01719,3426.9,3426.8,0.29189]
[1736272103327,1.805,3427.9,3426.8,5.0]
[1736272103523,2.33976,3427.9,3426.8,0.72972]
[1736272103827,3.2078,3427.1,3426.1,3.16435955]
[1736272104127,5.0128,3427.8,3426.6,3.16435955]
[1736272104326,5.0128,3427.8,3427.2,3.2078]
[1736272104529,1.73601,3427.8,3427.7,0.29181]
[1736272104825,3.2078,3429.0,3428.9,0.29171]
[1736272105220,4.01158,3429.0,3428.7,3.16435955]
[1736272105427,4.01158,3429.0,3428.9,0.29171]
[1736272105625,0.80378,3429.0,3428.9,0.29171]
[1736272105825,0.80378,3429.0,3428.9,3.45583335]
[1736272106020,8.2078,3429.0,3428.0,8.76]
[1736272106222,3.2078,3428.2,3427.4,3.16412335]
[1736272106428,3.2078,3427.8,3427.7,0.2918]
[1736272106630,1.8649,3428.9,3428.1,0.29177]
[1736272106631,3.2078,3428.2,3428.1,0.29177]
[1736272106924,1.8649,3428.9,3428.5,0.29174]
[1736272106925,3.2078,3428.6,3428.5,0.29174]
[1736272107330,0.06108,3428.6,3428.5,3.49954]
[1736272107525,3.2078,3429.3,3429.2,0.29168]
[1736272107731,3.2078,3429.8,3428.9,3.16412335]
[1736272107928,3.2078,3429.0,3428.9,0.29171]
[1736272108230,3.2078,3429.4,3429.0,0.2917]
[1736272108430,3.2078,3429.4,3429.3,0.29167]
[1736272109025,3.2078,3430.0,3428.9,3.16412335]
[1736272109226,3.2078,3430.0,3429.9,0.29162]
[1736272109427,3.2078,3430.0,3429.5,3.16412335]
[1736272109628,3.2078,3429.6,3429.0,3.16412335]
[1736272109933,3.2078,3429.6,3429.5,0.29166]
[1736272110134,3.2078,3429.6,3429.5,3.45578335]
[1736272110633,3.2078,3430.0,3429.9,0.29162]
[1736272110939,3.2078,3430.4,3429.9,3.16412335]
[1736272111128,3.2078,3430.4,3430.3,0.29159]
[1736272111729,1.9152,3431.5,3431.3,0.2915]
[1736272111923,3.2078,3431.7,3430.2,11.92012335]
[1736272112227,3.2078,3430.6,3430.5,0.29157]
[1736272112537,3.2078,3431.2,3431.1,0.29152]
[1736272112937,3.2078,3431.2,3430.2,14.51112335]
[1736272113234,3.2078,3430.7,3430.6,0.29156]
[1736272113628,3.26608015,3431.7,3430.2,14.51112335]
[1736272113829,3.2078,3431.7,3431.6,0.29148]
[1736272114232,3.35568029,3432.0,3431.5,2.591]
[1736272114428,3.35568029,3432.0,3431.9,0.29145]
[1736272115029,3.35568029,3432.0,3431.8,0.29146]
[1736272115231,3.49924,3432.1,3431.5,2.591]
[1736272115432,3.2078,3432.1,3431.5,2.591]
[1736272115641,3.2078,3432.5,3432.1,0.29143]
[1736272115936,3.2078,3432.5,3431.5,2.591]
[1736272116233,3.2078,3432.0,3431.9,0.29144]
[1736272117034,3.2078,3432.4,3432.3,0.29142]
[1736272117637,3.2078,3433.1,3432.1,0.72859]
[1736272117831,3.2078,3433.1,3432.9,0.29136]
[1736272118036,3.2078,3433.1,3433.0,0.29136]
[1736272118335,3.2078,3433.1,3431.8,3.2078]
[1736272118540,3.2078,3431.9,3431.2,4.64482291]
[1736272118842,0.72837,3433.2,3431.2,4.64482291]
[1736272118843,3.2078,3432.3,3431.2,4.64482291]
[1736272119031,3.2078,3432.4,3432.0,0.29144]
[1736272119231,3.2078,3432.4,3431.2,5.37359291]
[1736272119232,3.2078,3432.4,3431.2,4.64482291]
[1736272119432,3.2078,3432.0,3431.2,4.64482291]
[1736272119841,3.2078,3432.0,3431.1,4.64482291]
[1736272120039,3.2078,3432.0,3431.9,0.29145]
[1736272120241,3.2078,3432.5,3431.8,4.64482291]
[1736272120538,3.2078,3432.5,3432.4,0.29141]
[1736272120742,3.2078,3432.5,3432.4,12.52523291]
[1736272120938,3.2078,3432.5,3432.4,7.52523291]
[1736272121138,3.2078,3433.3,3432.4,20.98382291]
[1736272121336,3.2078,3433.3,3433.2,0.29134]
[1736272121838,3.2078,3433.3,3432.4,15.98382291]
[1736272122137,3.2078,3432.5,3432.4,11.339]
[1736272122438,3.2078,3432.5,3432.4,0.29141]
[1736272122936,3.2078,3433.0,3432.9,0.29137]
[1736272123133,3.2078,3433.0,3432.9,2.88037]
[1736272123332,1.7433,3434.8,3432.9,2.88037]
[1736272123333,3.2078,3433.9,3433.3,0.29133]
[1736272123530,3.2078,3433.9,3433.8,0.29129]
[1736272123738,3.2078,3434.4,3433.3,11.9558]
[1736272123943,3.2078,3434.4,3434.3,0.29125]
[1736272124136,3.37138044,3435.0,3434.3,0.29125]
[1736272124338,3.2078,3434.4,3434.3,4.93607291]
[1736272124538,1.7307,3435.9,3434.7,0.29121]
[1736272124539,3.2078,3434.8,3434.7,0.29121]
[1736272124747,0.72756,3437.0,3434.9,4.64482291]
[1736272124937,10.06704088,3439.0,3434.9,4.64482291]
[1736272124938,3.2078,3439.5,3438.4,0.2909]
[1736272125139,3.2078,3440.5,3437.0,1.45511]
[1736272125140,3.2078,3440.3,3439.5,0.2908]
[1736272125436,3.2078,3440.7,3440.3,0.29074]
[1736272125630,3.2078,3441.1,3439.8,4.64482291]
[1736272126037,3.2078,3440.7,3439.8,4.64482291]
[1736272126340,3.2078,3440.0,3439.2,4.64482291]
[1736272126642,3.2078,3439.6,3438.6,4.64482291]
[1736272127039,3.2078,3439.2,3439.0,0.29085]
[1736272127244,3.49864,3439.2,3438.2,0.29092]
[1736272127449,3.2078,3438.7,3437.1,1.875]
[1736272127746,3.2078,3438.2,3436.8,4.64482291]
[1736272127939,3.2078,3437.4,3437.3,0.29099]
[1736272128138,3.2078,3437.4,3436.1,5.37256291]
[1736272128341,3.2078,3436.6,3435.7,0.72782]
[1736272128543,3.2078,3436.6,3436.5,0.29106]
[1736272128748,3.2078,3436.8,3435.8,2.586]
[1736272128946,3.2078,3436.4,3435.5,0.72787]
[1736272129143,3.2078,3437.2,3436.1,3.2078]
[1736272129451,3.2078,3438.1,3438.0,0.29093]
[1736272129648,3.2078,3438.1,3436.1,3.2078]
[1736272129848,3.2078,3436.9,3435.7,3.2078]
[1736272130049,3.2078,3436.9,3436.8,0.29104]
[1736272130243,3.2078,3437.3,3437.2,0.29099]
[1736272130638,1.8664,3439.0,3437.2,5.29099]
[1736272130847,1.8664,3439.0,3436.5,11.16627291]
[1736272130848,3.2078,3437.8,3436.6,3.2078]
[1736272131044,3.2078,3437.8,3437.7,0.29096]
[1736272131343,3.2078,3438.2,3438.1,0.29093]
[1736272131950,3.2078,3438.2,3437.0,8.739]
[1736272131951,3.2078,3438.2,3437.1,4.64482291]
[1736272132142,3.2078,3437.8,3437.7,0.29096]
[1736272132641,3.2078,3437.8,3435.9,3.2078]
[1736272132843,3.2078,3437.3,3435.9,7.22982291]
[1736272133042,3.2078,3437.3,3436.1,0.72775]
[1736272133354,3.2078,3436.9,3436.8,0.29104]
[1736272133652,3.2078,3436.9,3436.5,0.29106]
[1736272133844,3.2078,3436.9,3436.7,0.29104]
[1736272134146,3.2078,3436.9,3435.9,3.2078]
[1736272134347,3.2078,3436.3,3436.2,0.29109]
[1736272134544,3.2078,3436.9,3435.5,3.2078]
[1736272134855,3.2078,3436.9,3435.9,4.64482291]
[1736272135147,3.2078,3436.9,3436.7,0.29104]
[1736272135347,3.2078,3436.9,3436.8,0.29104]
[1736272135749,3.2078,3437.6,3436.8,8.2078]
[1736272135947,3.2078,3438.0,3437.9,0.29094]
[1736272136450,3.2078,3438.4,3438.3,0.29091]
[1736272136644,3.2078,3439.4,3438.1,2.585]
[1736272136849,3.2078,3439.4,3439.2,0.29083]
[1736272137047,3.2078,3439.4,3439.3,0.29082]
[1736272137247,3.2078,3440.0,3439.9,0.29077]
[1736272137445,3.2078,3440.4,3439.4,3.2078]
[1736272137644,3.2078,3440.4,3439.4,2.585]
[1736272137842,3.2078,3440.4,3440.3,0.29074]
[1736272138250,2.52932,3440.4,3440.3,5.29074]
[1736272138452,4.4742,3442.1,3440.5,0.72681]
[1736272138453,3.2078,3441.6,3440.5,0.72681]
[1736272138661,3.2078,3441.6,3440.7,3.2078]
[1736272138852,3.2078,3441.6,3441.5,0.29064]
[1736272139043,3.2078,3441.6,3440.8,2.584]
[1736272139244,4.4742,3442.1,3440.3,0.2912]
[1736272139245,0.29069,3441.0,3440.3,0.29074]
[1736272139457,3.2078,3440.4,3439.6,5.7918]
[1736272139657,3.2078,3440.4,3440.3,0.29074]
[1736272140154,3.2078,3441.2,3440.3,5.0]
[1736272140351,3.2078,3441.2,3441.1,0.29067]
[1736272140548,0.29068,3441.0,3440.1,4.64482291]
[1736272140854,3.2078,3440.3,3439.7,0.29078]
[1736272141052,3.2078,3440.3,3439.3,3.2078]
[1736272141448,3.2078,3440.3,3439.5,4.64482291]
[1736272141857,3.2078,3440.3,3440.1,0.29075]
[1736272142157,3.2078,3440.3,3440.2,0.29075]
[1736272143057,3.2078,3440.3,3438.9,8.14382291]
[1736272143569,5.13805,3441.8,3438.9,8.14382291]
[1736272143570,3.2078,3440.7,3439.7,3.2078]
[1736272143854,4.4742,3442.1,3440.1,4.64482291]
[1736272143855,3.2078,3441.1,3440.1,4.64482291]
[1736272144159,3.2078,3441.1,3441.0,0.29068]
[1736272144554,3.2078,3441.1,3440.9,0.29069]
[1736272144754,3.2078,3441.1,3440.2,2.583]
[1736272145051,3.2078,3440.7,3439.9,3.2078]
[1736272145261,3.2078,3440.3,3439.5,4.64482291]
[1736272145450,3.2078,3440.3,3440.2,0.29075]
[1736272145649,3.2078,3440.3,3440.1,0.29075]
[1736272145860,3.2078,3440.3,3440.2,0.29075]
[1736272146157,3.2078,3441.3,3440.2,3.2078]
[1736272146360,3.2078,3441.3,3441.1,0.29067]
[1736272146660,3.2078,3441.3,3441.2,0.29066]
[1736272147154,3.2078,3442.3,3442.2,0.29058]
[1736272147353,4.2389,3442.9,3441.2,9.289]
[1736272147354,7.4467,3442.9,3441.8,0.72654]
[1736272147550,0.29054,3442.7,3441.7,4.64482291]
[1736272147754,4.4167,3443.8,3441.7,4.64482291]
[1736272147755,3.2078,3442.1,3441.7,0.29062]
[1736272147951,3.2078,3442.1,3441.1,4.64482291]
[1736272148156,3.2078,3441.7,3441.5,0.29063]
[1736272148358,3.2078,3441.7,3441.6,0.29063]
[1736272148556,3.2078,3442.3,3442.2,0.29058]
[1736272148956,3.2078,3442.3,3441.1,4.64482291]
[1736272149156,3.2078,3441.9,3441.1,4.64482291]
[1736272149365,4.4167,3443.8,3440.8,2.516]
[1736272149366,3.2078,3441.5,3441.4,0.29065]
[1736272149557,3.2078,3441.5,3440.6,3.2078]
[1736272149756,0.2907,3440.9,3440.3,0.29073]
[1736272149959,0.2907,3440.9,3439.1,12.9106]
[1736272149960,3.2078,3440.7,3438.9,4.78857035]
[1736272150156,3.2078,3440.0,3438.9,4.78857035]
[1736272150357,3.2078,3440.4,3439.9,0.29077]
[1736272150664,3.2078,3440.4,3440.0,0.29076]
[1736272150851,3.2078,3440.4,3439.5,3.14452245]
[1736272151254,3.2078,3440.4,3440.3,0.29074]
[1736272151465,7.6663,3440.8,3440.7,0.29071]
[1736272151667,7.6663,3440.8,3440.2,3.14309954]
[1736272151961,3.2078,3440.3,3440.2,0.29074]
[1736272152259,3.2078,3440.3,3439.2,3.14309954]
[1736272152464,3.2078,3439.6,3438.4,3.14309954]
[1736272152657,3.2078,3439.1,3439.0,3.43394954]
[1736272153366,3.2078,3439.1,3439.0,0.29085]
[1736272153564,3.2078,3439.6,3439.0,3.14309954]
[1736272153868,3.2078,3439.6,3439.5,0.29081]
[1736272154054,3.2078,3440.3,3439.5,3.14309954]
[1736272154459,3.2078,3440.3,3440.2,0.29075]
[1736272154865,3.2078,3441.2,3440.3,0.72686]
[1736272155162,4.3243,3441.9,3441.0,3.14309954]
[1736272155371,4.3243,3441.9,3441.6,3.2078]
[1736272155572,4.3243,3441.9,3441.8,0.29061]
[1736272155761,7.6191,3443.1,3441.6,3.2078]
[1736272156067,3.2078,3442.7,3442.2,3.2078]
[1736272156273,4.4113,3443.1,3441.8,3.2078]
[1736272156568,4.4113,3443.1,3441.5,3.2078]
[1736272156769,4.4113,3443.1,3442.2,3.2078]
[1736272156960,0.29055,3442.6,3442.2,3.49838]
[1736272157269,0.29051,3443.0,3442.2,3.2078]
[1736272157459,4.4113,3443.1,3442.2,3.49837]
[1736272157664,4.4113,3443.1,3442.4,0.29056]
[1736272157867,4.4113,3443.1,3442.3,0.29057]
[1736272158061,4.4113,3443.1,3442.4,3.2078]
[1736272158276,4.4113,3443.1,3441.4,4.78810618]
[1736272158277,0.29063,3441.7,3441.4,0.29065]
[1736272158565,0.29065,3441.4,3441.1,3.2078]
[1736272158755,3.2078,3441.7,3441.1,3.2078]
[1736272158961,3.2078,3441.7,3440.2,4.78810618]
[1736272158962,3.2078,3441.3,3440.2,3.2078]
[1736272159271,0.29066,3441.2,3440.4,0.29073]
[1736272159470,3.2078,3441.3,3440.3,0.29073]
[1736272159766,3.2078,3440.8,3439.9,3.2078]
[1736272159962,0.29072,3440.5,3439.9,3.2078]
[1736272160157,0.29073,3440.5,3440.1,0.29075]
[1736272160468,0.72686,3440.3,3438.8,3.2078]
[1736272160658,0.29089,3438.6,3438.3,3.2078]
[1736272160968,0.29091,3438.3,3438.0,3.2078]
[1736272161160,0.2909,3438.5,3438.0,0.29093]
[1736272161361,3.2078,3438.4,3437.6,3.2078]
[1736272161562,3.2078,3437.8,3437.0,3.2078]
[1736272161767,3.2078,3437.4,3436.6,3.2078]
[1736272162068,3.2078,3437.8,3436.6,3.2078]
[1736272162270,3.2078,3437.8,3437.0,3.2078]
[1736272162661,3.49872,3438.3,3437.8,0.29094]
[1736272162967,3.2078,3437.9,3436.9,0.29102]
[1736272163170,3.2078,3437.9,3437.2,3.2078]
[1736272163770,3.2078,3437.9,3437.8,0.29095]
[1736272163970,3.2078,3439.0,3437.8,3.49874]
[1736272164175,0.29093,3438.2,3437.7,3.49875]
[1736272164477,7.4207,3439.4,3438.1,3.2078]
[1736272164663,7.4207,3439.4,3438.7,3.2078]
[1736272164868,0.29083,3439.3,3438.9,0.29085]
[1736272165175,0.29084,3439.2,3438.8,3.2078]
[1736272165371,4.2129,3439.4,3438.1,3.2078]
[1736272165570,0.29084,3439.2,3438.7,0.29087]
[1736272165763,3.2078,3439.5,3438.5,3.2078]
[1736272165967,3.2078,3439.5,3439.3,0.29082]
[1736272166168,3.2078,3439.5,3439.2,0.29083]
[1736272166363,3.2078,3439.5,3437.3,1.45496]
[1736272166364,3.2078,3440.1,3439.0,4.78810618]
[1736272166565,3.2078,3440.1,3440.0,0.29077]
[1736272166768,0.29073,3440.4,3440.0,3.49856]
[1736272166976,0.29072,3440.6,3440.1,0.29075]
[1736272167269,0.29072,3440.5,3440.1,0.29075]
[1736272167567,7.82,3440.8,3440.0,3.2078]
[1736272167772,0.29075,3440.3,3439.9,0.29077]
[1736272167976,0.29074,3440.3,3439.3,0.29082]
[1736272168170,3.2078,3440.0,3439.5,3.2078]
[1736272168371,3.49857,3440.0,3439.6,0.2908]
[1736272168571,3.2078,3440.0,3439.2,3.2078]